bitfinex-derivatives/quotes_SOLF0:USTF0_20250312
["timestamp","ask_amount","ask_price","bid_price","bid_amount"]
[1741790595130,8.0011,125.01,124.95,33.24503062]
[1741790595334,0.05625013,124.99,124.97,0.05765713]
[1741790595531,0.05625013,124.99,124.97,33.30268775]
[1741790596338,0.05625013,124.99,124.97,0.05765713]
[1741790597231,0.05625013,124.99,124.93,240.24]
[1741790598340,8.0069,124.92,124.88,2.0476]
[1741790598540,43.08,124.95,124.86,241.0015]
[1741790598742,0.05515328,124.91,124.89,0.05673251]
[1741790598935,8.0078,124.9,124.89,0.05673251]
[1741790599540,43.13515328,124.91,124.89,0.05673251]
[1741790599737,8.0078,124.9,124.89,0.05673251]
[1741790599940,43.13515328,124.91,124.89,0.05673251]
[1741790600539,0.05515328,124.91,124.89,0.05673251]
[1741790600739,8.0078,124.9,124.89,0.05673251]
[1741790601040,0.05515328,124.91,124.89,0.05673251]
[1741790603435,0.05515328,124.91,124.83,33.24503062]
[1741790603436,43.08,124.9,124.83,33.24503062]
[1741790603643,8.0087,124.89,124.83,33.24503062]
[1741790603843,43.08,124.9,124.83,33.24503062]
[1741790604643,43.08,124.9,124.85,0.06173597]
[1741790604846,0.05180105,124.88,124.85,33.30676659]
[1741790606349,0.05180105,124.88,124.85,0.06173597]
[1741790607346,8.0104,124.86,124.85,0.06173597]
[1741790607545,0.05180105,124.88,124.85,0.06173597]
[1741790607948,8.06100105,124.88,124.85,0.06173597]
[1741790608146,0.05180105,124.88,124.85,0.06173597]
[1741790609151,8.0104,124.86,124.85,0.06173597]
[1741790612050,8.0104,124.86,124.85,3.597e-05]
[1741790613057,12.1416,124.86,124.85,3.597e-05]
[1741790613651,20.1416,124.86,124.85,3.597e-05]
[1741790614757,33.24503062,124.83,124.7,38.39923062]
[1741790614957,43.08,124.82,124.7,38.39923062]
[1741790615156,8.0167,124.77,124.7,38.39923062]
[1741790615462,43.08,124.77,124.7,38.39923062]
[1741790615755,0.05366739,124.75,124.72,0.05795363]
[1741790616954,8.0183,124.74,124.72,0.05795363]
[1741790617258,0.05366739,124.75,124.72,0.05795363]
[1741790617456,0.05366739,124.75,124.74,8.0181]
[1741790617958,0.05366739,124.75,124.73,8.0183]
[1741790618558,0.05366739,124.75,124.73,8.0186]
[1741790618860,0.05366739,124.75,124.72,33.30298425]
[1741790619063,0.05366739,124.75,124.72,41.32208425]
[1741790619359,0.05366739,124.75,124.72,33.30298425]
[1741790619561,0.05366739,124.75,124.72,8.07715363]
[1741790619761,0.05366739,124.75,124.72,0.05795363]
[1741790620861,8.07146739,124.75,124.72,8.07685363]
[1741790621061,0.05366739,124.75,124.72,0.05795363]
[1741790622457,0.05366739,124.75,124.73,8.0184]
[1741790622662,0.05366739,124.75,124.72,0.05795363]
[1741790622962,8.0181,124.74,124.72,0.05795363]
[1741790623161,0.05366739,124.75,124.72,0.05795363]
[1741790624063,0.05366739,124.75,124.67,8.0226]
[1741790624064,33.29869801,124.75,124.67,8.0226]
[1741790624264,2.1107,124.74,124.67,8.0226]
[1741790624563,8.0196,124.72,124.64,33.24503062]
[1741790625260,0.06011826,124.69,124.67,0.05132851]
[1741790625465,0.06011826,124.69,124.68,33.24503062]
[1741790625667,0.06011826,124.69,124.68,41.26693062]
[1741790628367,43.1,124.76,124.73,8.0186]
[1741790628766,2.1612,124.78,124.71,33.24503062]
[1741790628964,33.24503062,124.84,124.73,33.24503062]
[1741790629176,45.2522,124.8,124.73,33.24503062]
[1741790629364,43.12,124.8,124.78,8.015]
[1741790629769,0.05941233,124.8,124.75,33.24503062]
[1741790629963,0.05941233,124.8,124.78,0.05540945]
[1741790630264,8.0095,124.88,124.79,273.80503062]
[1741790630471,6.2228,124.91,124.82,33.24503062]
[1741790630965,6.2228,124.91,124.81,43.12]
[1741790630966,6.2228,124.91,124.84,33.24503062]
[1741790631471,0.05594709,124.89,124.86,0.06137661]
[1741790631659,8.06494709,124.89,124.86,0.06137661]
[1741790631962,0.05594709,124.89,124.86,0.06137661]
[1741790632166,0.05594709,124.89,124.86,8.07127661]
[1741790632360,0.05594709,124.89,124.86,0.06137661]
[1741790634371,4.1241,124.95,124.86,0.06137661]
[1741790634372,6.00783369,125.02,124.88,33.24503062]
[1741790634566,33.24503062,125.0,124.88,33.24503062]
[1741790634864,43.08,124.99,124.88,33.24503062]
[1741790635269,43.08,124.98,124.88,33.24503062]
[1741790635467,33.24503062,125.0,124.88,33.24503062]
[1741790635668,0.05993525,124.94,124.92,0.05787262]
[1741790635865,33.24503062,125.0,124.88,33.24503062]
[1741790636068,0.06109106,124.94,124.92,0.05575755]
[1741790636271,8.0035,124.97,124.9,41.25223062]
[1741790636470,0.05538495,124.94,124.92,0.05650859]
[1741790636672,43.08,124.98,124.9,33.24503062]
[1741790636870,0.05093194,124.93,124.91,8.06471966]
[1741790637074,8.0038,124.97,124.91,8.06471966]
[1741790637274,0.06044701,124.93,124.91,0.05771966]
[1741790637470,43.08,124.98,124.91,0.05771966]
[1741790637669,0.05749675,124.93,124.91,0.05771966]
[1741790637870,49.3229,125.01,124.9,33.24503062]
[1741790638071,8.0037,124.97,124.91,8.0068]
[1741790638473,49.3229,125.01,124.91,8.0068]
[1741790638869,49.3229,125.01,124.9,41.25283062]
[1741790639079,0.05109151,124.97,124.95,0.05645159]
[1741790639279,8.0057,124.94,124.88,35.32343062]
[1741790639475,8.0057,124.94,124.89,8.008]
[1741790639674,43.06,124.99,124.88,35.32343062]
[1741790639979,8.0043,124.96,124.91,33.24503062]
[1741790640479,0.05229705,124.95,124.92,0.05690524]
[1741790640875,8.0053,124.94,124.92,0.05690524]
[1741790641075,0.05229705,124.95,124.92,0.05690524]
[1741790641281,0.05229705,124.95,124.93,33.24503062]
[1741790642185,0.05229705,124.95,124.93,41.25053062]
[1741790642684,0.05229705,124.95,124.93,33.24503062]
[1741790643074,0.05229705,124.95,124.92,0.05690524]
[1741790643285,8.0059,124.93,124.92,0.05690524]
[1741790644389,0.05229705,124.95,124.92,0.05690524]
[1741790644779,0.05229705,124.95,124.93,8.0059]
[1741790645082,6.2429,125.01,124.93,33.24503062]
[1741790645283,6.2429,125.01,124.93,2.0983]
[1741790645585,6.2429,125.01,124.93,10.1036]
[1741790645785,6.2429,125.01,124.92,33.24503062]
[1741790645982,6.2429,125.01,124.92,41.25123062]
[1741790646180,6.2429,125.01,124.89,2.0983]
[1741790646181,0.05408472,124.98,124.95,0.05293194]
[1741790646385,43.09408472,124.98,124.95,0.05293194]
[1741790647187,43.09408472,124.98,124.87,242.5267]
[1741790647188,76.33911534,124.98,124.87,242.5267]
[1741790647489,76.28503062,124.98,124.87,242.5267]
[1741790647785,43.04,124.98,124.88,33.24503062]
[1741790647983,8.0043,124.96,124.88,33.24503062]
[1741790648183,8.0043,124.96,124.88,35.28813062]
[1741790648379,0.06065392,124.93,124.91,8.05966961]
[1741790648582,8.0043,124.96,124.91,0.05286961]
[1741790648783,0.06061618,124.93,124.91,0.05286961]
[1741790648980,8.0037,124.97,124.92,33.24503062]
[1741790649180,82.50793062,125.01,124.89,43.02]
[1741790649377,33.24503062,124.99,124.89,8.0081]
[1741790649588,33.24503062,124.99,124.88,78.30813062]
[1741790650189,0.05094605,124.95,124.92,0.05398964]
[1741790650487,49.2629,125.01,124.92,33.24503062]
[1741790650686,8.0022,124.99,124.95,8.0042]
[1741790650886,0.05792883,124.98,124.95,0.05134022]
[1741790651088,33.24503062,125.07,124.96,33.24503062]
[1741790651387,43.02,125.06,124.96,33.24503062]
[1741790651582,76.26503062,125.06,124.95,240.24]
[1741790651780,8.0027,124.99,124.95,248.2443]
[1741790651981,43.02,125.02,124.95,240.24]
[1741790652186,2.0384,125.01,124.95,240.24]
[1741790652492,8.003,124.98,124.97,0.05233862]
[1741790654392,43.02,124.98,124.9,33.24503062]
[1741790654798,43.02,124.98,124.9,41.25253062]
[1741790654990,43.02,124.98,124.89,240.2]
[1741790655492,43.02,124.98,124.92,0.05268414]
[1741790655493,0.05441106,124.95,124.92,0.05268414]
[1741790656291,0.05441106,124.95,124.92,33.29771476]
[1741790656895,0.05441106,124.95,124.92,41.30401476]
[1741790657190,0.05441106,124.95,124.92,33.29771476]
[1741790657389,0.05441106,124.95,124.92,0.05268414]
[1741790657794,8.0059,124.93,124.92,0.05268414]
[1741790658194,0.05441106,124.95,124.92,0.05268414]
[1741790658793,0.05441106,124.95,124.92,8.05888414]
[1741790659096,0.05441106,124.95,124.93,8.0056]
[1741790659298,0.05441106,124.95,124.92,0.05268414]
[1741790659693,0.05441106,124.95,124.93,8.0059]
[1741790659993,0.05441106,124.95,124.93,33.24503062]
[1741790660298,0.05441106,124.95,124.94,8.0052]
[1741790661394,6.174,125.01,124.97,8.003]
[1741790661598,8.0028,124.98,124.96,33.24503062]
[1741790662099,6.174,125.01,124.92,76.24503062]
[1741790662597,0.05833262,124.98,124.95,0.05977662]
[1741790663903,0.05833262,124.98,124.9,35.38883062]
[1741790664098,43.0,125.0,124.91,8.0067]
[1741790664497,43.0,125.0,124.9,33.24503062]
[1741790664498,43.0,125.0,124.89,240.2]
[1741790664804,43.0,125.0,124.9,33.24503062]
[1741790664994,0.05993582,124.96,124.94,0.05334414]
[1741790665597,8.06423582,124.96,124.94,0.05334414]
[1741790665803,0.05993582,124.96,124.94,0.05334414]
[1741790666303,0.05993582,124.96,124.95,8.0046]
[1741790666500,43.0,125.0,124.96,33.24503062]
[1741790666806,6.3542,125.04,124.99,8.0017]
[1741790666999,6.3542,125.04,124.98,33.24503062]
[1741790667503,0.05117088,125.02,125.0,0.05442499]
[1741790667900,0.05117088,125.02,125.0,8.05552499]
[1741790668110,0.05117088,125.02,125.0,0.05442499]
[1741790668303,0.05117088,125.02,125.0,8.05572499]
[1741790668506,0.05117088,125.02,125.0,0.05442499]
[1741790670704,8.05157088,125.02,125.0,0.05442499]
[1741790671110,0.05117088,125.02,125.0,0.05442499]
[1741790671706,8.0008,125.01,125.0,0.05442499]
[1741790672306,0.05117088,125.02,125.0,0.05442499]
[1741790674105,8.05147088,125.02,125.0,0.05442499]
[1741790674501,0.05117088,125.02,125.0,0.05442499]
[1741790674801,8.05157088,125.02,125.0,0.05442499]
[1741790675006,0.05117088,125.02,125.0,0.05442499]
[1741790675210,8.0008,125.01,125.0,0.05442499]
[1741790676215,8.0027,124.98,124.97,240.16]
[1741790677008,4.2979,125.01,124.92,34.23363062]
[1741790677214,42.96,125.0,124.92,34.23363062]
[1741790677415,0.05058165,124.98,124.96,0.05494685]
[1741790677618,8.05338165,124.98,124.96,0.05494685]
[1741790677820,0.05058165,124.98,124.96,0.05494685]
[1741790678211,8.0033,124.97,124.96,0.05494685]
[1741790679718,0.05058165,124.98,124.91,240.1]
[1741790680018,42.96,125.0,124.91,240.1]
[1741790680415,8.0047,124.95,124.91,240.1]
[1741790680720,42.96,125.0,124.91,240.1]
[1741790680921,8.0052,124.95,124.92,0.05836281]
[1741790681117,8.0052,124.95,124.91,248.1067]
[1741790681319,8.0052,124.95,124.92,0.05153588]
[1741790681519,0.05762536,124.94,124.92,0.05153588]
[1741790681718,8.0059,124.93,124.92,0.05153588]
[1741790682115,0.05762536,124.94,124.92,0.05153588]
[1741790682718,0.05762536,124.94,124.93,8.0059]
[1741790683020,0.05762536,124.94,124.92,0.05153588]
[1741790683417,0.05762536,124.94,124.93,8.0059]
[1741790683618,4.2979,125.01,124.93,33.24503062]
[1741790683823,47.2379,125.01,124.93,33.24503062]
[1741790684421,8.0031,124.98,124.94,8.0047]
[1741790684721,0.05132953,124.97,124.95,0.05750454]
[1741790686526,0.05132953,124.97,124.96,8.004]
[1741790687128,0.05132953,124.97,124.95,0.05750454]
[1741790687327,0.05132953,124.97,124.95,8.06170454]
[1741790687728,0.05132953,124.97,124.95,0.05750454]
[1741790688132,8.004,124.96,124.95,0.05750454]
[1741790688428,0.05132953,124.97,124.95,0.05750454]
[1741790688824,8.05492953,124.97,124.95,0.05750454]
[1741790689032,0.05132953,124.97,124.95,0.05750454]
[1741790691034,8.004,124.96,124.95,0.05750454]
[1741790692131,0.05132953,124.97,124.91,240.1]
[1741790692331,8.0051,124.95,124.91,240.1]
[1741790692534,42.94,124.98,124.91,240.1]
[1741790692739,42.94,124.98,124.91,248.1071]
[1741790692939,42.94,124.98,124.91,240.1]
[1741790693639,0.06001354,124.96,124.93,0.0518207]
[1741790695547,8.0049,124.95,124.93,0.0518207]
[1741790695938,8.06431354,124.96,124.93,0.0518207]
[1741790696143,0.06001354,124.96,124.93,0.0518207]
[1741790696644,50.85507087,124.95,124.73,16.0365]
[1741790696846,44.8975,124.94,124.8,33.24503062]
[1741790697047,42.92,124.93,124.8,33.24503062]
[1741790697246,8.0108,124.86,124.8,35.26873062]
[1741790697448,42.92,124.87,124.8,35.26873062]
[1741790697644,8.0111,124.85,124.8,35.26873062]
[1741790697846,6.56666068,124.84,124.82,0.05947576]
[1741790698146,0.05602733,124.85,124.82,0.05947576]
[1741790698147,14.57896068,124.83,124.82,0.05947576]
[1741790698950,14.57896068,124.83,124.77,20.80674445]
[1741790699147,6.56666068,124.82,124.77,20.80674445]
[1741790699349,2.00305255,124.81,124.77,20.80674445]
[1741790699653,50.9323,124.84,124.78,8.0151]
[1741790699952,6.62750148,124.83,124.77,20.80674445]
[1741790700146,2.0636077,124.82,124.8,0.05923686]
[1741790700351,2.00352378,124.81,124.8,0.05923686]
[1741790700861,6.63061348,124.81,124.74,240.14]
[1741790701151,6.63061348,124.8,124.74,240.14]
[1741790701455,2.00408594,124.79,124.74,240.14]
[1741790701650,42.92,124.84,124.74,240.14]
[1741790701651,2.00408594,124.78,124.74,240.14]
[1741790701954,6.68787878,124.77,124.75,0.05310868]
[1741790702144,0.05977934,124.77,124.75,0.05310868]
[1741790702551,2.114,124.83,124.75,0.05310868]
[1741790702552,2.114,124.83,124.76,76.20446176]
[1741790702848,6.62154083,124.82,124.76,76.20446176]
[1741790703051,35.26196176,124.87,124.8,33.28446176]
[1741790703052,1.9775,124.87,124.8,33.28446176]
[1741790703348,2.1679,124.9,124.8,76.20446176]
[1741790703349,6.61924462,124.86,124.8,76.20446176]
[1741790703655,2.00336648,124.85,124.8,42.92]
[1741790703855,6.6733027,124.84,124.82,0.05952909]
[1741790704149,10.01566648,124.83,124.82,0.05952909]
[1741790704354,33.28446176,124.82,124.74,240.14]
[1741790704654,6.61669677,124.81,124.74,240.14]
[1741790704854,2.00336648,124.8,124.74,273.42446176]
[1741790705050,2.1679,124.82,124.78,8.0155]
[1741790705353,0.05317703,124.81,124.79,0.05430028]
[1741790707352,10.07064084,124.81,124.79,0.05430028]
[1741790707545,2.00376381,124.8,124.79,0.05430028]
[1741790707750,0.05317703,124.81,124.79,0.05430028]
[1741790708155,2.059,124.88,124.8,33.28446176]
[1741790708349,8.0093,124.88,124.82,33.28446176]
[1741790708654,2.00298123,124.87,124.8,37.36626176]
[1741790708856,2.00298123,124.86,124.8,37.36626176]
[1741790709057,2.00298123,124.86,124.78,33.28446176]
[1741790709553,0.05758265,124.83,124.81,0.05552572]
[1741790710356,42.99758265,124.83,124.75,5.2489]
[1741790710555,2.00380074,124.82,124.75,5.2489]
[1741790710756,42.94,124.83,124.75,5.2489]
[1741790711055,42.94,124.83,124.76,33.28446176]
[1741790711455,0.05327012,124.81,124.78,0.0616119]
[1741790711659,0.05327012,124.81,124.78,33.34607366]
[1741790711960,42.94,124.89,124.8,33.28446176]
[1741790712151,42.94,124.89,124.78,43.0016119]
[1741790712152,2.00325241,124.88,124.82,33.28446176]
[1741790712655,2.00325241,124.88,124.84,33.28446176]
[1741790712856,42.94,124.94,124.86,33.28446176]
[1741790713154,8.0072,124.91,124.86,33.28446176]
[1741790713359,0.05332469,124.91,124.89,0.05672289]
[1741790713762,2.05567709,124.91,124.89,0.05672289]
[1741790713949,0.05332469,124.91,124.89,0.05672289]
[1741790714558,2.05555654,124.91,124.89,0.05672289]
[1741790714758,0.05332469,124.91,124.89,8.06462289]
[1741790714958,0.05332469,124.91,124.89,0.05672289]
[1741790715356,0.05332469,124.91,124.9,8.0078]
[1741790715553,0.05332469,124.91,124.89,0.05672289]
[1741790716559,8.06062469,124.91,124.89,0.05672289]
[1741790716856,0.05332469,124.91,124.89,0.05672289]
[1741790717061,10.0101628,124.9,124.89,0.05672289]
[1741790717263,2.0023628,124.9,124.89,0.05672289]
[1741790717465,0.05332469,124.91,124.89,0.05672289]
[1741790717658,2.00226838,124.9,124.89,0.05672289]
[1741790717963,0.05332469,124.91,124.89,0.05672289]
[1741790718662,8.0078,124.9,124.89,0.05672289]
[1741790718860,0.05332469,124.91,124.82,284.4758]
[1741790718861,0.05332469,124.91,124.82,274.84026176]
[1741790719061,2.00280378,124.9,124.82,273.68446176]
[1741790719360,8.62468548,124.89,124.82,273.68446176]
[1741790719563,2.00280378,124.88,124.82,273.68446176]
[1741790719765,2.00280378,124.88,124.85,8.0106]
[1741790720059,2.00280378,124.87,124.85,0.05929845]
[1741790720260,10.01360378,124.86,124.85,0.05929845]
[1741790720562,6.61388084,124.86,124.78,33.28446176]
[1741790720865,44.92280378,124.85,124.8,33.28446176]
[1741790721060,44.9276,124.89,124.82,33.28446176]
[1741790721265,6.61609487,124.88,124.82,33.28446176]
[1741790721566,0.05629017,124.86,124.84,0.0596841]
[1741790721765,2.05916769,124.86,124.84,0.0596841]
[1741790721965,0.05629017,124.86,124.84,0.0596841]
[1741790722168,0.05629017,124.86,124.84,33.34414586]
[1741790722561,0.05629017,124.86,124.85,8.011]
[1741790723066,8.0076,124.91,124.86,8.0104]
[1741790723266,6.62119187,124.9,124.84,33.28446176]
[1741790723466,6.62119187,124.89,124.83,240.34]
[1741790723667,2.00259808,124.88,124.83,240.34]
[1741790723867,2.00259808,124.87,124.83,240.34]
[1741790724066,8.0115,124.85,124.83,240.34]
[1741790724265,42.97923137,124.86,124.84,0.05869016]
[1741790724466,6.62186439,124.85,124.78,33.28446176]
[1741790724766,14.63357661,124.84,124.8,8.0139]
[1741790724967,2.00327402,124.83,124.78,33.28446176]
[1741790725168,42.92,124.86,124.84,8.0112]
[1741790725364,2.00325876,124.85,124.84,8.0112]
[1741790725569,42.9,124.89,124.84,0.05560223]
[1741790725570,0.0533595,124.86,124.84,0.05560223]
[1741790725971,2.00300312,124.85,124.84,0.05560223]
[1741790726171,2.00300312,124.85,124.84,8.06720223]
[1741790726469,2.00300312,124.85,124.84,0.05560223]
[1741790726969,14.63447825,124.85,124.78,33.28446176]
[1741790727171,2.00300312,124.84,124.78,33.28446176]
[1741790727366,2.00300312,124.83,124.78,33.28446176]
[1741790727567,2.00346731,124.82,124.78,33.28446176]
[1741790727767,2.00346731,124.81,124.78,33.28446176]
[1741790727968,42.9,124.85,124.78,33.28446176]
[1741790728172,3.142e-05,124.81,124.78,0.05959113]
[1741790728371,42.9,124.88,124.8,66.56892352]
[1741790728674,2.00293952,124.87,124.83,33.28446176]
[1741790728872,2.00293952,124.86,124.85,8.011]
[1741790729073,2.00293952,124.86,124.83,33.28446176]
[1741790729371,2.00289585,124.85,124.83,33.28446176]
[1741790729573,0.05383683,124.86,124.84,8.0114]
[1741790729767,2.00291715,124.85,124.83,33.34056518]
[1741790729967,8.06463683,124.86,124.83,8.06810342]
[1741790730162,2.00295692,124.85,124.83,8.06810342]
[1741790730469,2.00295692,124.84,124.83,0.05610342]
[1741790731374,2.00314588,124.84,124.83,0.05610342]
[1741790731569,10.01474588,124.84,124.83,0.05610342]
[1741790731769,14.64978761,124.84,124.83,0.05610342]
[1741790732074,37.10053896,124.98,124.83,33.34056518]
[1741790732372,49.28936176,124.99,124.88,33.28446176]
[1741790732373,49.011,124.96,124.88,33.28446176]
[1741790732574,8.006,124.93,124.88,41.29326176]
[1741790732771,4.6387877,124.92,124.88,33.28446176]
[1741790733069,6.111,124.96,124.88,33.28446176]
[1741790733272,4.64319806,124.95,124.91,8.0069]
[1741790733472,0.05108225,124.93,124.89,0.05481991]
[1741790733674,12.64989806,124.92,124.87,8.0093]
[1741790733876,4.64319806,124.91,124.9,0.05790596]
[1741790734073,4.64319806,124.92,124.9,0.05790596]
[1741790734272,4.64319806,124.91,124.9,0.05790596]
[1741790734581,4.64319806,124.91,124.86,33.28446176]
[1741790734872,4.64319806,124.9,124.89,8.0079]
[1741790735075,4.64319806,124.9,124.86,33.28446176]
[1741790735277,42.9,124.93,124.86,33.28446176]
[1741790735574,0.05242184,124.89,124.87,0.06059038]
[1741790735969,0.05242184,124.89,124.88,8.0091]
[1741790737973,42.9,124.93,124.91,8.0066]
[1741790738171,4.64526533,124.92,124.91,8.0066]
[1741790738372,6.111,124.96,124.9,33.28446176]
[1741790739075,0.0508478,124.94,124.92,8.06751195]
[1741790739476,0.0508478,124.94,124.92,33.34607371]
[1741790740067,0.0508478,124.94,124.92,41.34607371]
[1741790740378,17.25260682,125.05,124.99,8.0017]
[1741790740575,7.9992,125.04,124.99,8.0017]
[1741790740878,2.1528,125.06,124.98,33.28446176]
[1741790741273,0.05269579,125.03,125.01,0.05942395]
[1741790742975,0.05269579,125.03,124.96,33.28446176]
[1741790743278,0.05269579,125.03,124.85,16.0208]
[1741790743279,42.86,125.03,124.94,33.28446176]
[1741790743578,42.86,125.03,124.98,41.28696176]
[1741790743970,42.86,125.03,124.98,33.28446176]
[1741790744277,2.05260556,125.02,124.99,0.05615624]
[1741790744471,2.0006681,125.01,124.99,0.05615624]
[1741790744973,0.05193746,125.02,124.99,0.05615624]
[1741790745174,2.00028532,125.05,125.0,33.28446176]
[1741790745378,2.00028532,125.04,125.0,33.28446176]
[1741790745675,2.00028532,125.03,125.0,33.28446176]
[1741790745879,2.1016,125.06,125.0,33.28446176]
[1741790746182,2.00021133,125.05,125.0,33.28446176]
[1741790746377,2.06140941,125.04,125.02,0.06018921]
[1741790746576,0.06119808,125.04,125.02,0.06018921]
[1741790747579,2.00005036,125.03,125.02,0.06018921]
[1741790747777,2.00005036,125.03,124.96,33.28446176]
[1741790747973,10.00045036,125.02,124.96,33.28446176]
[1741790748280,2.00005036,125.01,124.96,33.28446176]
[1741790748977,2.05226142,125.0,124.97,0.06004146]
[1741790749177,2.00005036,124.99,124.97,0.06004146]
[1741790749775,0.05221106,125.0,124.93,242.2538]
[1741790749776,2.00005036,124.98,124.93,240.28]
[1741790749979,44.84005036,124.97,124.88,76.12446176]
[1741790750173,4.02095036,124.96,124.9,8.0074]
[1741790750478,6.54345731,124.95,124.89,53.99090445]
[1741790750683,2.00005036,124.94,124.9,8.0076]
[1741790750881,2.00005036,124.93,124.89,53.99090445]
[1741790751175,0.05913737,124.93,124.91,0.05982429]
[1741790751383,42.84,125.04,124.92,107.9818089]
[1741790751579,12.79648114,125.03,124.95,53.99090445]
[1741790751884,8.002,125.0,124.95,53.99090445]
[1741790752079,2.00110249,124.99,124.98,53.99090445]
[1741790752274,6.2461,125.03,124.98,53.99090445]
[1741790752486,0.05583775,125.0,124.98,53.99090445]
[1741790752678,8.05763775,125.0,124.98,53.99090445]
[1741790752880,0.05583775,125.0,124.97,0.0573142]
[1741790753481,2.05660626,125.0,124.98,53.99090445]
[1741790753691,0.05583775,125.0,124.98,53.99090445]
[1741790754378,2.05653953,125.0,124.98,53.99090445]
[1741790754578,2.0008039,124.99,124.97,0.0573142]
[1741790755179,2.0008039,124.98,124.97,0.0573142]
[1741790755478,44.8208039,124.98,124.94,240.14]
[1741790755679,6.54862334,124.97,124.9,61.99830445]
[1741790755884,6.54889066,124.96,124.88,296.12850445]
[1741790756183,8.0072,124.91,124.88,294.11090445]
[1741790756685,0.05632753,124.91,124.88,294.17041848]
[1741790757281,2.05844955,124.91,124.88,294.17041848]
[1741790757480,0.05632753,124.91,124.88,294.17041848]
[1741790757883,0.05632753,124.91,124.89,8.008]
[1741790758080,2.05842995,124.91,124.89,8.008]
[1741790758280,2.05842995,124.91,124.88,294.17041848]
[1741790758281,0.05632753,124.91,124.88,294.17041848]
[1741790758583,0.05632753,124.91,124.9,8.0078]
[1741790759782,0.05632753,124.91,124.89,8.0082]
[1741790759982,0.05632753,124.91,124.88,240.17951403]
[1741790761084,0.05632753,124.91,124.9,53.99090445]
[1741790761473,0.05632753,124.91,124.88,294.17041848]
[1741790761879,0.05632753,124.91,124.88,302.17911848]
[1741790762076,10.06600994,124.91,124.88,294.17041848]
[1741790762279,8.06392753,124.91,124.88,240.17951403]
[1741790762886,10.01039893,124.9,124.88,240.17951403]
[1741790763080,2.00229893,124.89,124.88,0.05951403]
[1741790763281,2.00229893,124.89,124.83,2.1348]
[1741790763482,2.00229893,124.88,124.82,296.34920445]
[1741790763683,2.00229893,124.87,124.8,53.99090445]
[1741790763883,2.00229893,124.86,124.79,53.99090445]
[1741790764085,2.00229893,124.85,124.79,53.99090445]
[1741790764281,2.00229893,124.84,124.79,53.99090445]
[1741790764486,8.07147348,124.83,124.81,0.05463383]
[1741790764985,0.05907348,124.83,124.81,0.05463383]
[1741790765787,2.00369194,124.82,124.81,0.05463383]
[1741790765982,2.00369194,124.82,124.76,240.2]
[1741790766185,10.01729194,124.81,124.76,240.2]
[1741790766482,42.82,124.86,124.76,248.2163]
[1741790766483,2.00397312,124.8,124.76,248.2163]
[1741790766681,42.82,124.86,124.76,240.2]
[1741790766885,6.55028381,124.85,124.76,240.2]
[1741790767083,0.05444101,124.82,124.8,0.05733112]
[1741790767480,2.05846359,124.82,124.8,0.05733112]
[1741790767684,0.05444101,124.82,124.8,54.04823557]
[1741790767979,0.05444101,124.82,124.81,8.0136]
[1741790768386,47.1542,124.9,124.81,42.84]
[1741790768588,2.00312451,124.89,124.87,53.99090445]
[1741790768884,3.9917,124.96,124.87,53.99090445]
[1741790769086,6.54601411,124.95,124.89,61.99910445]
[1741790769286,6.54601411,124.94,124.89,53.99090445]
[1741790769486,2.0552265,124.93,124.9,0.06018667]
[1741790769684,0.05293519,124.93,124.9,0.06018667]
[1741790770086,53.99090445,125.04,124.91,53.99090445]
[1741790770279,53.99090445,125.04,124.93,53.99090445]
[1741790770280,1.988,125.01,124.93,53.99090445]
[1741790770587,6.54833161,125.0,124.95,61.99540445]
[1741790770789,2.00143922,124.99,124.95,53.99090445]
[1741790770988,1.988,125.01,124.95,53.99090445]
[1741790771281,0.05721221,124.99,124.97,0.05674612]
[1741790771891,2.0010202,124.98,124.97,0.05674612]
[1741790772282,10.0037202,124.98,124.97,0.05674612]
[1741790772487,6.55222159,124.98,124.93,53.99090445]
[1741790772690,2.0010202,124.97,124.92,240.3]
[1741790772880,2.0010202,124.96,124.92,240.3]
[1741790773380,8.0031,124.98,124.92,240.3]
[1741790773690,0.05891039,124.95,124.93,54.04751197]
[1741790774084,0.05891039,124.95,124.93,0.05660752]
[1741790774487,8.06351039,124.95,124.93,0.05660752]
[1741790774687,0.05891039,124.95,124.93,0.05660752]
[1741790774884,2.00166325,124.94,124.93,0.05660752]
[1741790775082,10.00686325,124.94,124.93,0.05660752]
[1741790775288,6.54710141,124.94,124.86,294.21090445]
[1741790775486,6.54710141,124.93,124.86,240.22]
[1741790775786,6.54710141,124.93,124.81,42.82]
[1741790775787,6.54500199,124.92,124.82,56.02840445]